fUST/lending_fUST_20240611
["ID","MTS","AMOUNT","RATE_DAILY","PERIOD"]
[328974272,1718037045827,-500.0,0.00019178,2]
[328974273,1718037045838,-500.0,0.00019178,2]
[328974275,1718037045848,-1588.01,0.00019178,2]
[328974277,1718037045858,-500.0,0.00019178,2]
[328974279,1718037045868,-500.0,0.00019178,2]
[328974281,1718037045878,-500.0,0.00019178,2]
[328974283,1718037045888,-500.0,0.00019178,2]
[328974285,1718037045902,-500.0,0.00019178,2]
[328974286,1718037045913,-500.0,0.00019178,2]
[328974288,1718037045923,-500.0,0.00019178,2]
[328974291,1718037045936,-500.0,0.00019178,2]
[328974293,1718037045947,-500.0,0.00019178,2]
[328974295,1718037045958,-1474.98,0.00019178,2]
[328974296,1718037045969,-500.0,0.00019178,2]
[328974298,1718037045980,-2564.84,0.00019178,2]
[328974300,1718037045993,-500.0,0.00019178,2]
[328974302,1718037046004,-500.0,0.00019178,2]
[328974304,1718037046015,-500.0,0.00019178,2]
[328974306,1718037046026,-501.96796547,0.00019178,2]
[328974308,1718037046038,-500.0,0.00019178,2]
[328974310,1718037046049,-500.0,0.00019178,2]
[328974312,1718037046060,-500.0,0.00019178,2]
[328974314,1718037046070,-588.37,0.00019178,2]
[328974316,1718037046081,-500.0,0.00019178,2]
[328974318,1718037046091,-577.8,0.00019178,2]
[328974320,1718037046101,-500.0,0.00019178,2]
[328974322,1718037046111,-500.0,0.00019178,2]
[328974324,1718037046122,-500.0,0.00019178,2]
[328974326,1718037046132,-898.77,0.00019178,2]
[328974328,1718037046143,-500.0,0.00019178,2]
[328974330,1718037046153,-314.89949198,0.00019178,2]
[328974332,1718037046163,-500.0,0.00019178,2]
[328974334,1718037046175,-500.0,0.00019178,2]
[328974336,1718037046186,-596.35,0.00019178,2]
[328974338,1718037046196,-2659.29,0.00019178,2]
[328974340,1718037046205,-500.0,0.00019178,2]
[328974342,1718037046217,-500.0,0.00019178,2]
[328974344,1718037046229,-500.0,0.00019178,2]
[328974346,1718037046240,-500.0,0.00019178,2]
[328974348,1718037046251,-500.0,0.00019178,2]
[328974350,1718037046261,-500.0,0.00019178,2]
[328974352,1718037046272,-403.7093912,0.00019178,2]
[328974354,1718037046283,-500.0,0.00019178,2]
[328974356,1718037046293,-709.71,0.00019178,2]
[328974358,1718037046303,-1791.39,0.00019178,2]
[328974360,1718037046314,-500.0,0.00019178,2]
[328974362,1718037046325,-500.0,0.00019178,2]
[328974364,1718037046338,-500.0,0.00019178,2]
[328974366,1718037046348,-500.0,0.00019178,2]
[328974368,1718037046358,-500.0,0.00019178,2]
[328974370,1718037046370,-1338.82,0.00019178,2]
[328974372,1718037046380,-500.0,0.00019178,2]
[328974374,1718037046391,-500.0,0.00019178,2]
[328974376,1718037046402,-500.0,0.00019178,2]
[328974379,1718037046415,-500.0,0.00019178,2]
[328974381,1718037046426,-500.0,0.00019178,2]
[328974383,1718037046436,-500.0,0.00019178,2]
[328974385,1718037046446,-500.0,0.00019178,2]
[328974388,1718037046456,-549.86871283,0.00019178,2]
[328974390,1718037046466,-500.0,0.00019178,2]
[328974392,1718037046476,-500.0,0.00019178,2]
[328974394,1718037046487,-500.0,0.00019178,2]
[328974396,1718037046497,-500.0,0.00019178,2]
[328974398,1718037046507,-500.0,0.00019178,2]
[328974400,1718037046517,-500.0,0.00019178,2]
[328974402,1718037046528,-3008.45,0.00019178,2]
[328974404,1718037046538,-907.55,0.00019178,2]
[328974406,1718037046550,-500.0,0.00019178,2]
[328974408,1718037046561,-500.0,0.00019178,2]
[328974410,1718037046571,-500.0,0.00019178,2]
[328974412,1718037046581,-500.0,0.00019178,2]
[328974414,1718037046592,-500.0,0.00019178,2]
[328974416,1718037046603,-523.56,0.00019178,2]
[328974418,1718037046613,-500.0,0.00019178,2]
[328974420,1718037046624,-500.0,0.00019178,2]
[328974422,1718037046634,-500.0,0.00019178,2]
[328974424,1718037046644,-500.0,0.00019178,2]
[328974426,1718037046655,-500.0,0.00019178,2]
[328974428,1718037046666,-500.0,0.00019178,2]
[328974430,1718037046679,-500.0,0.00019178,2]
[328974432,1718037046690,-500.0,0.00019178,2]
[328974434,1718037046700,-4239.03743968,0.00019283,2]
[328974436,1718037046711,-1536.00578304,0.00019451,2]
[328974438,1718037046721,-9632.61424674,0.00019452,15]
[328974440,1718037046731,-1729.8377494,0.00019452,15]
[328974442,1718037046741,-297.38491922,0.00019452,2]
[328974444,1718037046752,-500.0,0.00019452,2]
[328974446,1718037046762,-500.0,0.00019452,2]
[328974448,1718037046772,-500.0,0.00019452,2]
[328974450,1718037046783,-603.49779567,0.00019452,2]
[328974452,1718037046793,-500.0,0.00019452,2]
[328974454,1718037046803,-500.0,0.00019452,2]
[328974456,1718037046814,-500.0,0.00019452,2]
[328974458,1718037046825,-500.0,0.00019452,2]
[328974460,1718037046835,-546.17,0.00019452,2]
[328974462,1718037046845,-500.0,0.00019452,2]
[328974464,1718037046856,-500.0,0.00019452,2]
[328974466,1718037046866,-500.0,0.00019452,2]
[328974467,1718037046876,-500.0,0.00019452,2]
[328974470,1718037046886,-500.0,0.00019452,2]
[328974472,1718037046899,-500.0,0.00019452,2]
[328974474,1718037046909,-500.0,0.00019452,2]
[328974476,1718037046919,-675.94,0.00019452,2]
[328974478,1718037046931,-500.0,0.00019452,2]
[328974480,1718037046942,-500.0,0.00019452,2]
[328974482,1718037046951,-500.0,0.00019452,2]
[328974484,1718037046961,-500.0,0.00019452,2]
[328974486,1718037046971,-500.0,0.00019452,2]
[328974488,1718037046981,-500.0,0.00019452,2]
[328974490,1718037046991,-500.0,0.00019452,2]
[328974492,1718037047001,-500.0,0.00019452,2]
[328974494,1718037047011,-500.0,0.00019452,2]
[328974496,1718037047021,-500.0,0.00019452,2]
[328974498,1718037047032,-500.0,0.00019452,2]
[328974500,1718037047042,-500.0,0.00019452,2]
[328974502,1718037047052,-500.0,0.00019452,2]
[328974503,1718037047062,-500.0,0.00019452,2]
[328974506,1718037047072,-500.0,0.00019452,2]
[328974507,1718037047083,-500.0,0.00019452,2]
[328974509,1718037047093,-648.33,0.00019452,2]
[328974511,1718037047103,-500.0,0.00019452,2]
[328974513,1718037047113,-500.0,0.00019452,2]
[328974514,1718037047123,-534.18,0.00019452,2]
[328974516,1718037047134,-500.0,0.00019452,2]
[328974518,1718037047145,-500.0,0.00019452,2]
[328974520,1718037047155,-500.0,0.00019452,2]
[328974521,1718037047166,-500.0,0.00019452,2]
[328974523,1718037047176,-500.0,0.00019452,2]
[328974525,1718037047187,-500.0,0.00019452,2]
[328974527,1718037047197,-793.5,0.00019452,2]
[328974529,1718037047209,-500.0,0.00019452,2]
[328974531,1718037047219,-500.0,0.00019452,2]
[328974533,1718037047230,-500.0,0.00019452,2]
[328974534,1718037047240,-500.0,0.00019452,2]
[328974535,1718037047251,-500.0,0.00019452,2]
[328974537,1718037047261,-500.0,0.00019452,2]
[328974539,1718037047272,-500.0,0.00019452,2]
[328974541,1718037047282,-500.0,0.00019452,2]
[328974543,1718037047292,-500.0,0.00019452,2]
[328974544,1718037047303,-500.0,0.00019452,2]
[328974546,1718037047313,-540.21,0.00019452,2]
[328974548,1718037047324,-1509.25,0.00019452,2]
[328974550,1718037047335,-2231.15,0.00019452,2]
[328974552,1718037047347,-500.0,0.00019452,4]
[328974554,1718037047357,-412.88009459,0.00019452,2]
[328974555,1718037047366,-828.11,0.00019452,2]
[328974556,1718037047378,-500.0,0.00019452,2]
[328974557,1718037047388,-500.0,0.00019452,2]
[328974559,1718037047398,-500.0,0.00019452,2]
[328974560,1718037047410,-500.0,0.00019452,2]
[328974562,1718037047422,-500.0,0.00019452,2]
[328974564,1718037047434,-593.77,0.00019452,2]
[328974566,1718037047444,-500.0,0.00019452,2]
[328974567,1718037047455,-500.0,0.00019452,2]
[328974568,1718037047466,-500.0,0.00019452,2]
[328974570,1718037047476,-500.0,0.00019452,2]
[328974571,1718037047486,-855.67,0.00019452,2]
[328974573,1718037047497,-500.0,0.00019452,2]
[328974575,1718037047507,-3444.78,0.00019452,2]
[328974577,1718037047517,-500.0,0.00019452,2]
[328974579,1718037047527,-500.0,0.00019452,2]
[328974581,1718037047537,-500.0,0.00019452,2]
[328974582,1718037047547,-500.0,0.00019452,2]
[328974584,1718037047559,-1588.01,0.00019452,2]
[328974585,1718037047569,-500.0,0.00019452,2]
[328974587,1718037047579,-500.0,0.00019452,2]
[328974589,1718037047589,-500.0,0.00019452,2]
[328974591,1718037047599,-500.0,0.00019452,2]
[328974593,1718037047610,-500.0,0.00019452,2]
[328974594,1718037047620,-1474.98,0.00019452,2]
[328974596,1718037047630,-500.0,0.00019452,2]
[328974598,1718037047640,-2564.84,0.00019452,2]
[328974600,1718037047651,-500.0,0.00019452,2]
[328974602,1718037047663,-500.0,0.00019452,2]
[328974603,1718037047673,-500.0,0.00019452,2]
[328974604,1718037047685,-500.0,0.00019452,2]
[328974605,1718037047695,-500.0,0.00019452,2]
[328974606,1718037047704,-500.0,0.00019452,2]
[328974614,1718037047825,-588.37,0.00019452,2]
[328974616,1718037047836,-500.0,0.00019452,2]
[328974618,1718037047847,-577.8,0.00019452,2]
[328974619,1718037047857,-500.0,0.00019452,2]
[328974621,1718037047867,-500.0,0.00019452,2]
[328974623,1718037047877,-898.77,0.00019452,2]
[328974625,1718037047887,-500.0,0.00019452,2]
[328974626,1718037047897,-500.0,0.00019452,2]
[328974627,1718037047909,-500.0,0.00019452,2]
[328974628,1718037047919,-596.35,0.00019452,2]
[328974630,1718037047931,-2659.29,0.00019452,2]
[328974632,1718037047941,-500.0,0.00019452,2]
[328974633,1718037047951,-500.0,0.00019452,2]
[328974635,1718037047961,-413.81334674,0.00019452,2]
[328974636,1718037047971,-500.0,0.00019452,2]
[328974637,1718037047981,-500.0,0.00019452,2]
[328974638,1718037047992,-500.0,0.00019452,2]
[328974639,1718037048002,-709.71,0.00019452,2]
[328974640,1718037048012,-1791.39,0.00019452,2]
[328974641,1718037048022,-500.0,0.00019452,2]
[328974642,1718037048032,-500.0,0.00019452,2]
[328974643,1718037048042,-500.0,0.00019452,2]
[328974644,1718037048052,-1338.82,0.00019452,2]
[328974645,1718037048063,-500.0,0.00019452,2]
[328974646,1718037048073,-500.0,0.00019452,2]
[328974647,1718037048083,-500.0,0.00019452,2]
[328974648,1718037048093,-500.0,0.00019452,2]
[328974649,1718037048103,-500.0,0.00019452,2]
[328974650,1718037048113,-500.0,0.00019452,2]
[328974651,1718037048124,-500.0,0.00019452,2]
[328974652,1718037048134,-500.0,0.00019452,2]
[328974653,1718037048144,-500.0,0.00019452,2]
[328974654,1718037048155,-500.0,0.00019452,2]
[328974655,1718037048165,-500.0,0.00019452,2]
[328974656,1718037048175,-3008.45,0.00019452,2]
[328974657,1718037048189,-907.55,0.00019452,2]
[328974658,1718037048200,-500.0,0.00019452,2]
[328974659,1718037048211,-500.0,0.00019452,2]
[328974660,1718037048223,-500.0,0.00019452,2]
[328974661,1718037048235,-523.56,0.00019452,2]
[328974662,1718037048245,-500.0,0.00019452,2]
[328974663,1718037048255,-500.0,0.00019452,2]
[328974664,1718037048267,-500.0,0.00019452,2]
[328974665,1718037048278,-500.0,0.00019452,2]
[328974666,1718037048289,-596.19834304,0.00019452,2]
[328974667,1718037048300,-157.3,0.00019525,3]
[328974668,1718037048310,-2000.0,0.00019626,2]
[328974669,1718037048321,-216.14213589,0.00019725,2]
[328974670,1718037048332,-500.0,0.00019726,2]
[328974672,1718037048346,-500.0,0.00019726,2]
[328974673,1718037048356,-500.0,0.00019726,2]
[328974674,1718037048367,-500.0,0.00019726,2]
[328974675,1718037048378,-500.0,0.00019726,2]
[328974676,1718037048388,-500.0,0.00019726,2]
[328974677,1718037048398,-546.17,0.00019726,2]
[328974678,1718037048408,-500.0,0.00019726,2]
[328974679,1718037048421,-500.0,0.00019726,2]
[328974680,1718037048435,-190.80036327,0.00019726,2]
[328974681,1718037048444,-500.0,0.00019726,2]
[328974682,1718037048456,-500.0,0.00019726,2]
[328974683,1718037048466,-500.0,0.00019726,2]
[328974684,1718037048477,-675.94,0.00019726,2]
[328974685,1718037048487,-500.0,0.00019726,2]
[328974686,1718037048497,-500.0,0.00019726,2]
[328974687,1718037048508,-500.0,0.00019726,2]
[328974688,1718037048518,-500.0,0.00019726,2]
[328974689,1718037048528,-500.0,0.00019726,2]
[328974690,1718037048537,-500.0,0.00019726,2]
[328974691,1718037048548,-500.0,0.00019726,2]
[328974692,1718037048558,-500.0,0.00019726,2]
[328974693,1718037048568,-500.0,0.00019726,2]
[328974694,1718037048578,-500.0,0.00019726,2]
[328974695,1718037048588,-500.0,0.00019726,2]
[328974696,1718037048599,-500.0,0.00019726,2]
[328974697,1718037048609,-500.0,0.00019726,2]
[328974698,1718037048619,-500.0,0.00019726,2]
[328974699,1718037048629,-151.0,0.00019726,2]
[328974700,1718037048639,-648.33,0.00019726,2]
[328974701,1718037048649,-500.0,0.00019726,2]
[328974702,1718037048660,-534.18,0.00019726,2]
[328974703,1718037048670,-255.385865,0.00019726,2]
[328974704,1718037048685,-500.0,0.00019726,2]
[328974705,1718037048695,-500.0,0.00019726,2]
[328974706,1718037048705,-500.0,0.00019726,2]
[328974707,1718037048716,-793.5,0.00019726,2]
[328974708,1718037048727,-329.63090322,0.00019726,2]
[328974709,1718037048738,-500.0,0.00019726,2]
[328974710,1718037048748,-500.0,0.00019726,2]
[328974711,1718037048758,-500.0,0.00019726,2]
[328974712,1718037048769,-500.0,0.00019726,2]
[328974713,1718037048779,-173.111145,0.00019726,2]
[328974714,1718037048790,-173.111145,0.00019726,2]
[328974715,1718037048800,-545.51123255,0.00019726,2]
[328974716,1718037048810,-572.26,0.00019726,2]
[328974717,1718037048821,-500.0,0.00019726,2]
[328974718,1718037048831,-151.0,0.00019726,2]
[328974719,1718037048842,-151.0,0.00019726,2]
[328974720,1718037048852,-602.022192,0.00019726,2]
[328974721,1718037048862,-500.0,0.00019726,2]
[328974722,1718037048873,-540.21,0.00019726,2]
[328974723,1718037048883,-151.0,0.00019726,2]
[328974724,1718037048894,-602.022192,0.00019726,2]
[328974725,1718037048907,-1509.25,0.00019726,2]
[328974726,1718037048918,-2231.15,0.00019726,2]
[328974727,1718037048927,-500.0,0.00019726,4]
[328974728,1718037048939,-828.11,0.00019726,2]
[328974729,1718037048950,-500.0,0.00019726,2]
[328974730,1718037048959,-201.983991,0.00019726,2]
[328974731,1718037048970,-500.0,0.00019726,2]
[328974732,1718037048980,-500.0,0.00019726,2]
[328974733,1718037048989,-500.0,0.00019726,2]
[328974734,1718037049000,-610.39026951,0.00019726,2]
[328974735,1718037049009,-593.77,0.00019726,2]
[328974736,1718037049020,-500.0,0.00019726,2]
[328974737,1718037049030,-500.0,0.00019726,2]
[328974738,1718037049040,-500.0,0.00019726,2]
[328974739,1718037049050,-855.67,0.00019726,2]
[328974740,1718037049060,-3444.78,0.00019726,2]
[328974741,1718037049071,-500.0,0.00019726,2]
[328974742,1718037049082,-500.0,0.00019726,2]
[328974743,1718037049092,-500.0,0.00019726,2]
[328974744,1718037049103,-1588.01,0.00019726,2]
[328974745,1718037049113,-444.2,0.00019726,2]
[328974746,1718037049124,-500.0,0.00019726,2]
[328974747,1718037049134,-500.0,0.00019726,2]
[328974748,1718037049145,-1474.98,0.00019726,2]
[328974749,1718037049155,-500.0,0.00019726,2]
[328974750,1718037049165,-2564.84,0.00019726,2]
[328974751,1718037049177,-151.0,0.00019726,2]
[328974752,1718037049189,-500.0,0.00019726,2]
[328974753,1718037049199,-500.0,0.00019726,2]
[328974754,1718037049210,-500.0,0.00019726,2]
[328974755,1718037049220,-209.738757,0.00019726,2]
[328974756,1718037049230,-500.0,0.00019726,2]
[328974757,1718037049240,-209.738757,0.00019726,2]
[328974758,1718037049250,-329.84029751,0.00019726,2]
[328974759,1718037049260,-588.37,0.00019726,2]
[328974760,1718037049270,-500.0,0.00019726,2]
[328974761,1718037049281,-577.8,0.00019726,2]
[328974762,1718037049291,-500.0,0.00019726,2]
[328974763,1718037049301,-151.0,0.00019726,2]
[328974764,1718037049311,-898.77,0.00019726,2]
[328974765,1718037049321,-500.0,0.00019726,2]
[328974766,1718037049334,-151.0,0.00019726,2]
[328974767,1718037049348,-500.0,0.00019726,2]
[328974768,1718037049360,-500.0,0.00019726,2]
[328974769,1718037049371,-596.35,0.00019726,2]
[328974770,1718037049384,-2659.29,0.00019726,2]
[328974771,1718037049394,-500.0,0.00019726,2]
[328974772,1718037049404,-500.0,0.00019726,2]
[328974773,1718037049415,-500.0,0.00019726,2]
[328974774,1718037049426,-500.0,0.00019726,2]
[328974775,1718037049441,-500.0,0.00019726,2]
[328974776,1718037049452,-709.71,0.00019726,2]
[328974777,1718037049463,-1791.39,0.00019726,2]
[328974778,1718037049474,-500.0,0.00019726,2]
[328974779,1718037049485,-152.871538,0.00019726,2]
[328974780,1718037049495,-500.0,0.00019726,2]
[328974781,1718037049505,-1338.82,0.00019726,2]
[328974782,1718037049516,-500.0,0.00019726,2]
[328974783,1718037049527,-500.0,0.00019726,2]
[328974784,1718037049537,-500.0,0.00019726,2]
[328974785,1718037049547,-500.0,0.00019726,2]
[328974786,1718037049558,-500.0,0.00019726,2]
[328974787,1718037049568,-500.0,0.00019726,2]
[328974788,1718037049579,-151.0,0.00019726,2]
[328974789,1718037049590,-500.0,0.00019726,2]
[328974790,1718037049600,-3008.45,0.00019726,2]
[328974791,1718037049611,-907.55,0.00019726,2]
[328974792,1718037049622,-151.0,0.00019726,2]
[328974793,1718037049632,-500.0,0.00019726,2]
[328974794,1718037049643,-500.0,0.00019726,2]
[328974795,1718037049654,-500.0,0.00019726,2]
[328974796,1718037049665,-523.56,0.00019726,2]
[328974797,1718037049676,-500.0,0.00019726,2]
[328974798,1718037049690,-500.0,0.00019726,2]
[328974799,1718037049701,-500.0,0.00019726,2]
[328974800,1718037049712,-153.0,0.00019827,2]
[328974801,1718037049722,-153.0,0.00019827,2]
[328974802,1718037049733,-153.0,0.00019827,2]
[328974803,1718037049743,-153.0,0.00019827,2]
[328974804,1718037049755,-153.0,0.00019827,2]
[328974805,1718037049765,-153.0,0.00019827,2]
[328974806,1718037049776,-153.0,0.00019827,2]
[328974807,1718037049787,-153.0,0.00019827,2]
[328974808,1718037049797,-1055.88948187,0.00019976,2]
[328974809,1718037049809,-1115.98840214,0.0002,2]
[328974810,1718037049820,-151.0,0.0002,2]
[328974811,1718037049830,-500.0,0.0002,2]
[328974812,1718037049841,-500.0,0.0002,2]
[328974813,1718037049851,-500.0,0.0002,2]
[328974814,1718037049861,-506.4951524,0.0002,2]
[328974815,1718037049871,-500.0,0.0002,2]
[328974816,1718037049881,-46.88837993,0.0002,2]
[328974817,1718037049997,-499.28162007,0.0002,2]
[328974818,1718037050008,-500.0,0.0002,2]
[328974819,1718037050018,-500.0,0.0002,2]
[328974820,1718037050029,-500.0,0.0002,2]
[328974821,1718037050039,-500.0,0.0002,2]
[328974822,1718037050050,-675.94,0.0002,2]
[328974823,1718037050060,-500.0,0.0002,2]
[328974824,1718037050071,-500.0,0.0002,2]
[328974825,1718037050081,-500.0,0.0002,2]
[328974826,1718037050091,-500.0,0.0002,2]
[328974827,1718037050101,-500.0,0.0002,2]
[328974828,1718037050111,-500.0,0.0002,2]
[328974829,1718037050132,-500.0,0.0002,2]
[328974830,1718037050143,-151.0,0.0002,2]
[328974831,1718037050153,-500.0,0.0002,2]
[328974832,1718037050164,-151.0,0.0002,2]
[328974833,1718037050175,-500.0,0.0002,2]
[328974834,1718037050187,-500.0,0.0002,2]
[328974835,1718037050198,-220.453376,0.0002,2]
[328974836,1718037050209,-648.33,0.0002,2]
[328974837,1718037050219,-534.18,0.0002,2]
[328974838,1718037050229,-500.0,0.0002,2]
[328974839,1718037050239,-629.32496476,0.0002,2]
[328974840,1718037050249,-361.76933257,0.0002,2]
[328974841,1718037050259,-793.5,0.0002,2]
[328974842,1718037050270,-500.0,0.0002,2]
[328974843,1718037050280,-500.0,0.0002,2]
[328974844,1718037050291,-500.0,0.0002,2]
[328974845,1718037050301,-500.0,0.0002,2]
[328974846,1718037050311,-173.111145,0.0002,2]
[328974847,1718037050322,-173.111145,0.0002,2]
[328974848,1718037050334,-151.0,0.0002,2]
[328974849,1718037050347,-158.288148,0.0002,2]
[328974850,1718037050358,-602.022192,0.0002,2]
[328974851,1718037050369,-540.21,0.0002,2]
[328974852,1718037050380,-602.022192,0.0002,2]
[328974853,1718037050390,-151.0,0.0002,2]
[328974854,1718037050400,-1509.25,0.0002,2]
[328974855,1718037050412,-2231.15,0.0002,2]
[328974856,1718037050422,-516.97,0.0002,4]
[328974857,1718037050434,-828.11,0.0002,2]
[328974858,1718037050444,-488.12369135,0.0002,2]
[328974859,1718037050455,-284.87089557,0.0002,2]
[328974860,1718037050465,-500.0,0.0002,2]
[328974861,1718037050476,-593.77,0.0002,2]
[328974862,1718037050486,-500.0,0.0002,2]
[328974863,1718037050497,-500.0,0.0002,2]
[328974864,1718037050508,-500.0,0.0002,2]
[328974865,1718037050518,-855.67,0.0002,2]
[328974866,1718037050530,-3444.78,0.0002,2]
[328974867,1718037050540,-500.0,0.0002,2]
[328974868,1718037050551,-500.0,0.0002,2]
[328974869,1718037050561,-500.0,0.0002,2]
[328974870,1718037050571,-1588.01,0.0002,2]
[328974871,1718037050581,-500.0,0.0002,2]
[328974872,1718037050591,-500.0,0.0002,2]
[328974873,1718037050602,-1474.98,0.0002,2]
[328974874,1718037050613,-154.27709157,0.0002,2]
[328974875,1718037050624,-15.71681923,0.0002,2]
[328974876,1718037050647,-2549.12318077,0.0002,2]
[328974877,1718037050657,-151.0,0.0002,2]
[328974878,1718037050668,-227.97647337,0.0002,2]
[328974879,1718037050679,-500.0,0.0002,2]
[328974880,1718037050692,-500.0,0.0002,2]
[328974881,1718037050703,-209.738757,0.0002,2]
[328974882,1718037050713,-500.0,0.0002,2]
[328974883,1718037050723,-209.738757,0.0002,2]
[328974884,1718037050733,-588.37,0.0002,2]
[328974885,1718037050744,-500.0,0.0002,2]
[328974886,1718037050755,-577.8,0.0002,2]
[328974887,1718037050765,-500.0,0.0002,2]
[328974888,1718037050776,-151.0,0.0002,2]
[328974889,1718037050786,-493.59157698,0.0002,2]
[328974890,1718037050800,-405.17842302,0.0002,2]
[328974891,1718037050810,-500.0,0.0002,2]
[328974892,1718037050820,-165.741074,0.0002,2]
[328974893,1718037050830,-500.0,0.0002,2]
[328974894,1718037050840,-500.0,0.0002,2]
[328974895,1718037050850,-596.35,0.0002,2]
[328974896,1718037050860,-2659.29,0.0002,2]
[328974897,1718037050870,-500.0,0.0002,2]
[328974898,1718037050880,-500.0,0.0002,2]
[328974899,1718037050890,-615.67,0.0002,2]
[328974900,1718037050904,-500.0,0.0002,2]
[328974901,1718037050915,-709.71,0.0002,2]
[328974902,1718037050925,-1791.39,0.0002,2]
[328974903,1718037051092,-500.0,0.0002,2]
[328974904,1718037051104,-500.0,0.0002,2]
[328974905,1718037051115,-1338.82,0.0002,2]
[328974906,1718037051126,-500.0,0.0002,2]
[328974907,1718037051136,-500.0,0.0002,2]
[328974908,1718037051146,-500.0,0.0002,2]
[328974909,1718037051157,-500.0,0.0002,2]
[328974910,1718037051167,-500.0,0.0002,2]
[328974911,1718037051177,-500.0,0.0002,2]
[328974912,1718037051190,-151.0,0.0002,2]
[328974913,1718037051200,-500.0,0.0002,2]
[328974914,1718037051210,-3008.45,0.0002,2]
[328974915,1718037051221,-907.55,0.0002,2]
[328974916,1718037051232,-234.624732,0.0002,2]
[328974917,1718037051242,-500.0,0.0002,2]
[328974918,1718037051253,-500.0,0.0002,2]
[328974919,1718037051265,-500.0,0.0002,2]
[328974920,1718037051276,-523.56,0.0002,2]
[328974921,1718037051286,-500.0,0.0002,2]
[328974922,1718037051297,-500.0,0.0002,2]
[328974923,1718037051307,-500.0,0.0002,2]
[328974924,1718037051317,-157.3,0.00020181,3]
[328974925,1718037051327,-500.0,0.00020273,2]
[328974926,1718037051339,-500.0,0.00020273,2]
[328974927,1718037051349,-500.0,0.00020273,2]
[328974928,1718037051361,-546.17,0.00020273,2]
[328974929,1718037051371,-500.0,0.00020273,2]
[328974930,1718037051381,-500.0,0.00020273,2]
[328974931,1718037051390,-500.0,0.00020273,2]
[328974932,1718037051400,-500.0,0.00020273,2]
[328974933,1718037051412,-675.94,0.00020273,2]
[328974934,1718037051422,-500.0,0.00020273,2]
[328974935,1718037051434,-500.0,0.00020273,2]
[328974936,1718037051444,-525.12138007,0.00020273,2]
[328974937,1718037051453,-500.0,0.00020273,2]
[328974938,1718037051463,-500.0,0.00020273,2]
[328974939,1718037051473,-500.0,0.00020273,2]
[328974940,1718037051482,-500.0,0.00020273,2]
[328974941,1718037051492,-151.0,0.00020273,2]
[328974942,1718037051502,-588.14002799,0.00020273,2]
[328974943,1718037051512,-151.0,0.00020273,2]
[328974944,1718037051522,-500.0,0.00020273,2]